bitfinex-derivatives/quotes_ETHF0:USTF0_20251119
["timestamp","ask_amount","ask_price","bid_price","bid_amount"]
[1763592239084,0.33563313,2983.0,2982.9,3.2078]
[1763592240779,0.2868,2982.7,2982.6,3.4894]
[1763592241079,0.2868,2982.7,2982.6,3.2078]
[1763592241274,0.2868,2982.5,2982.4,2.09028833]
[1763592241480,0.2868,2982.4,2982.3,3.2078]
[1763592241876,0.2478,2982.2,2982.1,0.00502941]
[1763592242683,6.2478,2982.2,2982.1,0.00502941]
[1763592242890,6.2478,2982.2,2981.4,3.14548159]
[1763592242891,0.2478,2981.5,2981.4,2.06926992]
[1763592243184,0.4076,2981.5,2981.4,0.00348159]
[1763592245284,3.21282941,2981.7,2981.4,0.26058159]
[1763592245589,0.2478,2981.5,2981.4,0.26058159]
[1763592245788,3.46062941,2981.7,2981.6,0.2571]
[1763592245989,0.2478,2981.5,2981.4,0.26058159]
[1763592246287,3.46062941,2981.7,2981.6,0.2571]
[1763592248288,0.00502941,2981.7,2981.6,0.2571]
[1763592248987,2.43485048,2982.0,2981.9,0.2571]
[1763592249188,3.2078,2982.3,2982.0,0.1559]
[1763592249389,3.2078,2982.3,2982.2,0.2571]
[1763592249586,3.4556,2982.3,2982.2,0.2571]
[1763592249791,3.2078,2982.3,2982.2,0.2571]
[1763592249991,3.2078,2982.3,2981.8,3.196]
[1763592250191,0.2478,2981.9,2981.8,0.2571]
[1763592250587,0.1598,2982.5,2981.8,0.2571]
[1763592250788,0.2478,2981.9,2981.8,0.2571]
[1763592250988,0.2478,2981.7,2981.6,5.82378833]
[1763592251285,0.1598,2982.0,2981.4,8.27696992]
[1763592251286,0.4076,2981.5,2981.4,8.27696992]
[1763592251691,0.4076,2981.5,2981.4,6.46828159]
[1763592251891,0.4076,2981.5,2981.4,0.00348159]
[1763592252290,3.6154,2982.0,2981.9,0.2571]
[1763592252802,3.4556,2982.0,2981.9,0.2571]
[1763592255693,0.2478,2982.0,2981.9,0.2571]
[1763592256887,0.1598,2982.5,2981.9,2.06578833]
[1763592257093,0.2478,2982.0,2981.9,2.06578833]
[1763592257495,0.1598,2982.5,2981.9,2.06578833]
[1763592257798,0.2478,2982.0,2981.9,0.2571]
[1763592257987,0.2478,2982.0,2981.9,2.06578833]
[1763592260001,0.1598,2982.5,2981.9,2.06578833]
[1763592260198,0.2478,2982.0,2981.9,0.2571]
[1763592260603,0.2478,2981.9,2981.8,5.01648833]
[1763592261195,0.1598,2982.5,2981.9,0.2571]
[1763592261504,0.1598,2982.5,2982.0,0.1559]
[1763592264502,0.1598,2982.5,2982.0,1.96458833]
[1763592264704,0.1598,2982.5,2982.0,0.1559]
[1763592265913,0.1598,2982.5,2982.0,1.96458833]
[1763592266611,0.2575,2982.5,2982.4,0.2593]
[1763592266808,3.2078,2982.8,2982.4,0.2593]
[1763592267613,0.2575,2982.5,2982.4,0.2593]
[1763592268116,0.4084,2982.5,2982.4,0.2593]
[1763592269516,0.4084,2982.5,2982.1,5.01648833]
[1763592270418,0.4084,2982.5,2982.1,1.80868833]
[1763592270716,0.2575,2982.2,2982.1,2.06798833]
[1763592270918,0.2575,2982.2,2982.1,5.27578833]
[1763592273718,0.4078,2982.5,2982.1,5.01648833]
[1763592274511,0.4078,2982.5,2982.4,0.2441]
[1763592274713,3.2078,2982.8,2982.7,0.2441]
[1763592274914,3.4647,2982.8,2982.7,0.2441]
[1763592275121,0.2569,2982.3,2982.2,2.05278833]
[1763592275615,0.2569,2982.2,2982.1,3.2078]
[1763592275819,0.2569,2982.2,2982.1,3.4519]
[1763592276422,0.2569,2982.2,2982.1,5.26058833]
[1763592277823,0.2569,2982.2,2982.1,5.01648833]
[1763592278116,0.1406,2982.5,2981.8,2.38843623]
[1763592278117,0.2569,2982.1,2981.8,5.59623623]
[1763592278327,0.2569,2981.9,2981.8,3.4519]
[1763592278508,0.1406,2982.0,2981.6,2.38843623]
[1763592278509,0.2569,2981.8,2981.6,2.38843623]
[1763592278710,0.2569,2981.6,2981.5,3.2078]
[1763592280427,3.2078,2981.7,2981.2,0.00502941]
[1763592281124,3.75673001,2981.7,2981.0,0.1392]
[1763592281323,0.7789562,2981.6,2981.0,0.14195734]
[1763592281623,3.7602116,2981.7,2981.0,0.14195734]
[1763592281819,0.7789554,2981.6,2981.0,0.14195734]
[1763592282024,3.7602116,2981.7,2981.0,0.14195734]
[1763592282324,0.77907586,2981.6,2981.1,0.00502941]
[1763592282513,3.7602116,2981.7,2981.1,0.00502941]
[1763592282719,0.77862167,2981.6,2981.1,0.00502941]
[1763592282920,3.2078,2981.4,2981.1,0.00502941]
[1763592283622,3.2078,2981.4,2981.0,0.00275734]
[1763592283823,3.2078,2981.1,2981.0,0.00275734]
[1763592284024,3.2078,2981.1,2981.0,0.38605734]
[1763592286026,3.2078,2981.5,2981.4,0.2441]
[1763592287727,0.0084816,2981.7,2981.6,0.2441]
[1763592289231,0.0084816,2981.7,2981.5,0.1392]
[1763592289822,3.2078,2981.6,2981.5,0.1392]
[1763592290330,3.2078,2981.6,2981.0,0.14195734]
[1763592290526,0.0084816,2981.7,2981.0,0.14195734]
[1763592290527,3.2078,2981.3,2981.0,0.14195734]
[1763592299143,0.54403,2981.1,2981.0,0.14195734]
[1763592300032,3.75183,2981.1,2981.0,0.14195734]
[1763592302240,0.54407,2980.9,2980.5,0.1392]
[1763592302439,3.2078,2980.7,2980.5,0.1392]
[1763592302843,0.54407,2980.9,2980.5,0.1392]
[1763592303043,3.2078,2980.6,2980.5,0.1392]
[1763592303338,3.2078,2980.6,2980.5,0.14319737]
[1763592305745,0.54407,2980.9,2980.5,0.14319737]
[1763592305942,3.2078,2980.6,2980.5,0.14319737]
[1763592307246,3.2078,2980.6,2980.5,0.41459737]
[1763592307842,3.2078,2980.7,2980.6,0.2714]
[1763592309641,1.43835974,2981.4,2980.9,0.2714]
[1763592309843,0.77834108,2981.3,2981.0,0.1539]
[1763592310044,3.2078,2981.1,2981.0,0.1539]
[1763592310245,3.98614108,2981.1,2981.0,0.1539]
[1763592311650,3.98614108,2981.1,2981.0,0.4253]
[1763592311853,3.2078,2981.1,2981.0,0.4253]
[1763592316453,0.544,2981.3,2981.0,0.4253]
[1763592316751,3.7518,2981.3,2981.0,0.4253]
[1763592317445,0.544,2981.3,2981.0,0.4253]
[1763592317641,3.7518,2981.3,2981.0,0.4253]
[1763592319054,3.7518,2981.3,2981.0,0.1539]
[1763592322751,0.0084816,2981.7,2981.5,0.1539]
[1763592322955,0.0084816,2981.7,2981.6,0.2714]
[1763592325060,0.0084816,2981.7,2981.5,0.1539]
[1763592325258,3.98918662,2981.6,2981.0,0.1539]
[1763592325459,3.2078,2981.1,2981.0,0.1539]
[1763592329274,3.2078,2981.5,2981.4,0.2639]
[1763592331470,0.0084816,2981.7,2981.6,0.2639]
[1763592332166,0.0084816,2981.7,2981.5,0.1608]
[1763592333473,3.2162816,2981.7,2981.6,0.2721]
[1763592333672,3.2162816,2981.7,2981.5,0.1608]
[1763592335071,0.78659343,2981.6,2981.5,0.1608]
[1763592335277,3.2162816,2981.7,2981.6,0.2721]
[1763592336178,3.2078,2982.0,2981.9,0.2721]
[1763592337277,3.21055734,2982.0,2981.9,0.2721]
[1763592340570,3.21055734,2982.0,2981.7,0.00502941]
[1763592343073,0.00275734,2982.0,2981.7,0.00502941]
[1763592345177,0.00275734,2982.0,2981.9,0.2721]
[1763592349775,0.00275734,2982.0,2981.8,3.2078]
[1763592350178,0.00275734,2982.0,2981.7,0.00502941]
[1763592350371,0.78713626,2981.9,2981.7,0.00502941]
[1763592350577,0.00275734,2982.0,2981.7,0.00502941]
[1763592351589,0.54662734,2982.0,2981.7,0.00502941]
[1763592352479,3.75442734,2982.0,2981.7,0.00502941]
[1763592356287,0.78665207,2981.9,2981.7,0.00502941]
[1763592356488,3.75442734,2982.0,2981.7,0.00502941]
[1763592356786,0.78666724,2981.9,2981.7,0.00502941]
[1763592356987,3.75442734,2982.0,2981.7,0.00502941]
[1763592357189,0.78668246,2981.9,2981.7,0.00502941]
[1763592357487,3.75442734,2982.0,2981.7,0.00502941]
[1763592357690,0.78686828,2981.9,2981.7,0.00502941]
[1763592357980,3.75442734,2982.0,2981.5,0.1608]
[1763592357981,0.54394,2981.6,2981.5,0.1608]
[1763592358489,1.33093077,2981.6,2981.5,0.1608]
[1763592362986,0.54398,2981.4,2981.3,0.00502941]
[1763592363185,3.2078,2981.4,2981.0,0.1539]
[1763592363383,0.54404,2981.1,2980.5,3.37059737]
[1763592363687,0.54405,2981.0,2980.5,3.65149737]
[1763592364079,3.2078,2981.1,2980.5,0.16782678]
[1763592364284,3.75189,2980.8,2980.5,0.16782678]
[1763592364480,3.2078,2980.8,2980.5,0.16782678]
[1763592364681,0.7855594,2980.7,2980.0,0.1588]
[1763592364881,0.54418,2980.3,2980.0,0.1588]
[1763592365284,0.54422,2980.1,2980.0,0.1588]
[1763592365689,0.54422,2980.1,2980.0,0.16155438]
[1763592365888,0.54422,2980.1,2980.0,0.00275438]
[1763592366295,0.54422,2980.1,2980.0,0.17835438]
[1763592366682,3.75202,2980.1,2980.0,0.17835438]
[1763592366880,3.75202,2980.1,2980.0,0.00275438]
[1763592367284,0.54425,2979.9,2979.8,0.00502941]
[1763592368381,0.54703773,2979.9,2979.8,0.00934783]
[1763592371894,0.00278773,2979.9,2979.8,0.29024783]
[1763592375399,0.00278773,2979.9,2979.8,6.29024783]
[1763592375596,0.00502941,2980.3,2980.2,0.2809]
[1763592376701,0.00866013,2980.3,2980.2,0.2809]
[1763592378905,0.00866013,2980.3,2980.0,0.1756]
[1763592380706,0.00866013,2980.3,2980.0,0.4565]
[1763592381006,0.00866013,2980.3,2980.0,0.1756]
[1763592381501,3.2078,2980.1,2979.8,0.00934783]
[1763592381902,0.54425,2979.9,2979.8,0.00934783]
[1763592386912,1.33134688,2979.9,2979.8,0.00934783]
[1763592389215,1.33134688,2979.9,2979.8,0.29024783]
[1763592389617,1.33134688,2979.9,2979.8,0.00934783]
[1763592390011,0.54431,2979.6,2979.5,0.16933439]
[1763592390314,0.54435,2979.4,2978.8,3.2078]
[1763592390510,0.54436,2979.3,2978.8,3.2078]
[1763592390711,3.2078,2979.4,2978.5,3.3834]
[1763592390903,0.54448,2978.7,2978.5,0.1756]
[1763592391102,0.54449,2978.6,2978.5,0.17916347]
[1763592391313,1.33301435,2978.6,2978.5,0.17916347]
[1763592392212,0.78852435,2978.6,2978.3,0.00332361]
[1763592392412,3.99632433,2978.5,2978.0,0.1756]
[1763592392615,0.54458,2978.1,2978.0,0.1756]
[1763592392813,1.33317357,2978.1,2978.0,0.1756]
[1763592393316,1.33722128,2978.1,2978.0,0.17978412]
[1763592394615,0.54472,2977.4,2977.0,3.3636]
[1763592394914,0.54472,2977.4,2977.0,0.1558]
[1763592395118,0.54472,2977.4,2977.0,0.4089]
[1763592395717,0.54472,2977.4,2977.0,0.41212525]
[1763592396107,3.2078,2977.7,2977.3,0.2531]
[1763592396418,3.2078,2977.7,2977.6,0.2531]
[1763592400123,0.54464,2977.8,2977.7,0.2531]
[1763592401921,0.54464,2977.8,2977.5,0.1539]
[1763592402318,0.54464,2977.8,2977.5,0.407]
[1763592402921,0.54464,2977.8,2977.7,0.2531]
[1763592403422,3.2078,2978.0,2977.9,0.2531]
[1763592403817,0.2766,2978.0,2977.9,0.2531]
[1763592404223,0.00404771,2978.1,2978.0,0.407]
[1763592405219,0.82523771,2978.1,2977.5,0.1539]
[1763592405524,0.2766,2977.6,2977.5,0.407]
[1763592405729,0.2766,2977.6,2977.0,3.36682525]
[1763592406121,0.82127,2977.6,2977.0,3.36682525]
[1763592409529,4.02907,2977.6,2977.0,0.15902525]
[1763592410426,0.54469,2977.5,2977.0,0.15902525]
[1763592411725,0.82129,2977.5,2977.4,0.2531]
[1763592411919,0.82129,2977.5,2977.0,0.15902525]
[1763592412126,0.97389,2977.5,2977.0,0.15902525]
[1763592413129,0.82129,2977.5,2977.0,0.15902525]
[1763592413330,0.54471,2977.4,2977.0,0.15902525]
[1763592415134,0.2766,2977.1,2977.0,0.00322525]
[1763592415625,0.2766,2977.1,2977.0,0.15712525]
[1763592415825,0.82136,2977.1,2977.0,0.15712525]
[1763592417318,0.82136,2977.1,2977.0,0.41022525]
[1763592420732,0.82144,2976.7,2976.6,3.2078]
[1763592420929,0.2766,2975.9,2975.8,3.4609]
[1763592421125,1.06905902,2975.9,2975.8,3.4609]
[1763592421332,1.7453979,2976.3,2976.1,0.2531]
[1763592421333,1.44527592,2976.3,2976.1,0.2531]
[1763592421636,0.54491,2976.3,2976.2,0.2531]
[1763592421836,0.82529902,2976.3,2976.2,0.2569874]
[1763592422135,1.61690783,2976.3,2976.2,0.2569874]
[1763592422335,1.61690783,2976.3,2976.2,0.0038874]
[1763592423231,1.34030783,2976.3,2976.2,0.2671874]
[1763592423437,1.59950783,2976.3,2976.2,0.0038874]
[1763592427338,0.2592,2975.9,2975.8,3.2078]
[1763592427632,0.2592,2975.9,2975.8,3.4711]
[1763592428333,0.2592,2975.9,2975.8,3.21035625]
[1763592428540,0.80418,2975.9,2975.8,3.21035625]
[1763592429433,0.80418,2975.9,2975.8,3.47365625]
[1763592429633,0.80418,2975.9,2975.8,0.26585625]
[1763592430036,0.80418,2975.9,2975.8,0.00255625]
[1763592430735,0.54506,2975.5,2975.2,3.2078]
[1763592430935,0.2592,2975.3,2975.2,3.4711]
[1763592431139,0.2592,2975.3,2975.0,0.1539]
[1763592431435,0.2592,2975.1,2975.0,0.4172]
[1763592431830,0.2592,2975.1,2975.0,0.42089903]
[1763592432831,0.2592,2975.1,2975.0,0.00369903]
[1763592433539,0.80433,2975.1,2975.0,0.00369903]
[1763592434540,0.54515,2975.0,2974.6,3.4711]
[1763592434736,0.2592,2974.7,2974.6,3.4711]
[1763592435133,0.54515,2975.0,2974.6,3.4711]
[1763592435539,0.54515,2975.0,2974.6,3.4736826]
[1763592435748,3.47203829,2975.3,2975.2,0.2633]
[1763592436338,0.00503829,2975.3,2975.2,0.2633]
[1763592437656,3.2078,2976.0,2975.9,0.2633]
[1763592441547,1.05156592,2977.0,2975.9,9.2078]
[1763592441752,0.1512,2977.0,2976.9,3.2078]
[1763592442352,0.1512,2977.0,2976.5,3.2078]
[1763592442651,0.1589607,2977.0,2976.5,3.21649602]
[1763592443354,0.0077607,2977.0,2976.9,3.2078]
[1763592443652,0.1589607,2977.0,2976.9,3.2078]
[1763592452561,0.0077607,2977.0,2976.9,3.2078]
[1763592453757,0.0763,2977.5,2976.9,3.2078]
[1763592453958,0.0763,2977.5,2977.3,3.2078]
[1763592454454,0.1094,2978.0,2977.3,5.3648]
[1763592454659,0.1094,2978.0,2977.9,3.2078]
[1763592454955,0.00364298,2978.0,2977.9,3.2078]
[1763592455155,0.00503829,2978.2,2977.9,3.2078]
[1763592455360,3.2078,2978.6,2977.9,3.2078]
[1763592456165,0.07995156,2978.5,2977.9,3.2078]
[1763592456368,0.08498985,2978.5,2977.9,3.2078]
[1763592458268,0.08498985,2978.5,2978.4,3.2078]
[1763592458461,0.00868985,2978.5,2978.4,3.2078]
[1763592459260,0.1699,2979.0,2978.4,3.2078]
[1763592459465,0.1699,2979.0,2978.9,3.2078]
[1763592460158,0.17307056,2979.0,2978.9,3.21079123]
[1763592460558,0.44767056,2979.0,2978.9,3.21079123]
[1763592463769,0.17307056,2979.0,2978.9,3.21079123]
[1763592465574,0.44767056,2979.0,2978.9,3.21079123]
[1763592465874,6.99209056,2979.0,2978.9,0.00299123]
[1763592466064,0.4445,2978.5,2978.4,3.2078]
[1763592467066,0.4445,2978.5,2978.4,3.21146803]
[1763592469073,0.1699,2978.5,2978.4,3.21146803]
[1763592471370,0.4445,2978.5,2978.4,3.21146803]
[1763592471771,0.1699,2978.5,2978.4,3.21146803]
[1763592472572,0.4445,2978.5,2978.4,0.00366803]
[1763592472870,0.4445,2978.5,2978.4,3.21146803]
[1763592473274,0.1699,2978.5,2978.4,3.21146803]
[1763592474179,0.4445,2978.5,2978.4,3.21146803]
[1763592474481,0.1699,2978.5,2978.4,3.21146803]
[1763592475077,0.4445,2978.5,2978.4,3.21146803]
[1763592475583,0.1699,2978.5,2978.4,3.21146803]
[1763592475782,0.4445,2978.5,2978.4,3.21146803]
[1763592477191,0.1699,2978.5,2978.4,3.21146803]
[1763592480592,0.17307056,2979.0,2978.4,3.21146803]
[1763592480988,0.17307056,2979.0,2978.7,3.2078]
[1763592482496,0.00503829,2979.2,2978.7,3.2078]
[1763592483394,0.00503829,2979.2,2979.1,3.2078]
[1763592483596,0.00881761,2979.2,2979.1,3.2078]
[1763592483797,0.79999425,2979.2,2979.1,3.2078]
[1763592486099,1.05419425,2979.2,2979.1,3.2078]
[1763592486900,0.26301761,2979.2,2979.1,3.2078]
[1763592488289,0.00881761,2979.2,2979.1,3.2078]
[1763592490499,0.1699,2979.5,2979.1,3.2078]
[1763592491698,0.1727788,2979.5,2979.1,3.2078]
[1763592495914,0.4269788,2979.5,2979.4,3.2078]
[1763592497099,0.1727788,2979.5,2979.4,3.2078]
[1763592497712,0.1727788,2979.5,2979.0,3.758]
[1763592498004,0.4269788,2979.5,2979.4,3.2078]
[1763592499907,0.1727788,2979.5,2979.4,3.2078]
[1763592500602,0.1699,2980.0,2979.4,3.2078]
[1763592500801,0.1439,2979.5,2979.4,3.2078]
[1763592500996,0.1699,2980.0,2979.4,3.2078]
[1763592501505,0.1699,2980.0,2979.4,6.9658]
[1763592501707,0.17402575,2980.0,2979.4,3.2078]
[1763592501908,0.17402575,2980.0,2979.8,3.2078]
[1763592505112,0.17402575,2980.0,2979.9,3.2078]
[1763592507117,0.00412575,2980.0,2979.9,3.2078]
[1763592507313,0.14692575,2980.0,2979.9,3.2078]
[1763592508017,0.00412575,2980.0,2979.9,3.2078]
[1763592508321,0.1699,2980.5,2979.9,3.2078]
[1763592508515,0.1699,2980.5,2980.4,3.2078]
[1763592509322,0.17315995,2980.5,2980.4,3.2078]
[1763592510718,0.00325995,2980.5,2980.4,3.2078]
[1763592510912,0.1439,2981.0,2980.4,3.2078]
[1763592511108,0.1439,2981.0,2980.7,3.2078]
[1763592512014,0.14771008,2981.0,2980.7,3.21107752]
[1763592518524,0.15011008,2981.0,2980.7,3.21107752]
[1763592519323,1.008e-05,2981.0,2980.7,3.21107752]
[1763592520522,0.1439,2981.5,2980.7,3.75516752]
[1763592520723,0.1439,2981.5,2981.4,3.2078]
[1763592520921,0.1439,2981.5,2981.4,6.4638]
[1763592521818,0.1428,2982.0,2981.4,6.4638]
[1763592522019,0.1428,2982.0,2981.7,3.2078]
[1763592528728,0.1428,2982.5,2981.7,3.2078]
[1763592528926,0.1428,2982.5,2982.2,3.2078]
[1763592529121,0.1428,2982.5,2982.3,2.423]
[1763592534419,0.1463,2982.5,2982.3,2.423]
[1763592534622,0.1463,2982.5,2982.2,3.2078]
[1763592534824,0.2415,2982.4,2982.3,3.254]
[1763592535832,0.1463,2982.5,2982.3,3.254]
[1763592541633,0.1463,2983.0,2982.3,3.254]
[1763592541834,0.3878,2983.0,2982.9,3.2078]
[1763592542034,0.3878,2983.0,2982.9,3.21201978]
[1763592544230,0.3841,2983.0,2982.9,3.21201978]
[1763592546335,0.1463,2983.0,2982.9,3.21201978]
[1763592547234,0.90036592,2983.8,2982.9,3.21201978]
[1763592547441,0.1463,2984.0,2983.5,3.2078]
[1763592547641,0.78297851,2983.9,2983.5,3.2078]
[1763592547834,0.1463,2984.0,2983.5,3.2078]
[1763592548034,0.2378,2983.6,2983.5,3.2078]
[1763592548236,0.2378,2983.6,2983.5,0.81050161]
[1763592548537,6.2378,2983.6,2983.5,0.81050161]
[1763592548739,0.2378,2983.3,2983.2,3.2078]
[1763592550342,1.02103329,2983.3,2983.2,3.2078]
[1763592552936,0.2378,2983.2,2983.1,0.00502958]
[1763592553140,1.02103329,2983.2,2983.1,0.24252958]
[1763592553444,1.02244303,2983.2,2983.1,0.00502958]
[1763592559643,1.02244303,2983.2,2983.1,0.24252958]
[1763592561046,0.78464303,2983.2,2983.1,0.24252958]
[1763592561647,0.38180508,2983.2,2983.1,0.24252958]
[1763592561848,0.5436,2983.5,2983.4,0.2375]
[1763592562049,0.7814,2983.5,2983.4,0.2375]
[1763592563052,0.2378,2983.2,2983.1,0.00502958]
[1763592565447,0.2378,2983.2,2983.1,0.24252958]
[1763592566048,0.2378,2983.2,2983.1,0.00502958]
[1763592568252,0.2378,2983.2,2983.1,0.23812958]
[1763592568453,0.90036592,2983.4,2983.3,0.2331]
[1763592568848,1.15676592,2983.4,2983.3,0.2331]
[1763592569654,0.2564,2983.2,2983.1,0.23812958]
[1763592570058,0.2564,2983.4,2983.3,0.2331]
[1763592570351,0.2564,2983.2,2983.1,0.00502958]
[1763592570553,0.80005,2983.2,2983.1,0.00502958]
[1763592571054,1.70041592,2983.2,2983.1,0.00502958]
[1763592571444,0.2564,2982.7,2982.6,1.80646286]
[1763592571646,0.39720414,2983.0,2982.5,0.1436]
[1763592571848,0.0181,2982.6,2982.5,0.1436]
[1763592572369,0.02164682,2982.6,2982.5,0.14767309]
[1763592573662,0.0052,2982.1,2982.0,3.3517]
[1763592573859,0.0052,2982.1,2981.5,0.1231]
[1763592573860,0.0052,2981.8,2981.7,3.2078]
[1763592574760,0.0052,2981.8,2981.7,3.21139294]
[1763592575353,0.0052,2981.8,2981.7,0.00359294]
[1763592576855,0.5491,2981.8,2981.7,0.00359294]
[1763592578455,0.5491,2981.8,2981.7,0.23279294]
[1763592580165,0.5491,2981.8,2981.7,0.00359294]
[1763592583970,3.7569,2981.8,2981.7,0.00359294]
[1763592584562,3.7569,2981.8,2981.7,0.23279294]
[1763592584861,3.7517,2981.8,2981.7,0.23279294]
[1763592585864,3.7569,2981.8,2981.7,0.23279294]
[1763592586566,3.2078,2982.3,2982.0,0.1439]
[1763592586760,0.79572233,2982.2,2982.0,0.1439]
[1763592586959,3.213,2982.3,2982.2,0.2292]
[1763592587156,0.0052,2982.1,2982.0,0.1439]
[1763592587357,0.0052,2981.8,2981.7,0.00359294]
[1763592588671,0.5491,2981.8,2981.7,0.00359294]
[1763592590568,0.5491,2981.8,2981.7,0.23279294]
[1763592590768,3.213,2982.0,2981.9,0.2292]
[1763592591067,3.2078,2982.0,2981.9,0.2292]
[1763592594466,3.213,2982.0,2981.9,0.2292]
[1763592595161,0.0052,2981.8,2981.7,0.23279294]
[1763592596569,3.2078,2982.0,2981.7,0.23279294]
[1763592596968,3.213,2982.0,2981.9,0.2292]
[1763592598572,3.2078,2982.0,2981.9,0.2292]
[1763592602172,4.009408,2982.0,2981.9,0.2292]
[1763592602377,4.047308,2982.0,2981.9,0.2292]
[1763592603174,4.009408,2982.0,2981.9,0.2292]
[1763592604178,4.047308,2982.0,2981.9,0.2292]
[1763592609378,4.009408,2982.0,2981.9,0.2292]
[1763592611185,0.0379,2982.4,2982.3,0.2461]
[1763592611384,0.0379,2982.4,2982.0,0.1484]
[1763592611385,0.0379,2982.1,2982.0,0.3945]
[1763592611787,0.00354682,2982.6,2982.0,3.6023]
[1763592612087,0.80190494,2982.5,2982.0,3.6023]
[1763592612283,0.00354682,2982.6,2982.0,3.6023]
[1763592612484,0.80162969,2982.5,2982.0,3.6023]
[1763592612684,0.00354682,2982.6,2982.0,3.6023]
[1763592612986,0.80162969,2982.5,2982.0,3.6023]
[1763592613185,0.00354682,2982.6,2982.0,3.6023]
[1763592613377,0.8014301,2982.5,2982.0,3.6023]
[1763592613575,0.00354682,2982.6,2982.0,3.6023]
[1763592613881,0.80143915,2982.5,2982.0,3.3562]
[1763592614085,0.00354682,2982.6,2982.0,3.3562]
[1763592614287,0.80149504,2982.5,2982.0,3.3562]
[1763592614474,0.00354682,2982.6,2982.0,3.3562]
[1763592614677,0.80139722,2982.5,2982.0,3.3562]
[1763592614878,0.00354682,2982.6,2982.0,3.3562]
[1763592615088,0.80139722,2982.5,2982.0,3.3562]
[1763592615285,0.00354682,2982.6,2982.0,3.3562]
[1763592615486,0.8013521,2982.5,2982.0,3.3562]
[1763592615789,0.04144682,2982.6,2982.5,0.1484]
[1763592615983,0.04144682,2982.6,2982.5,0.3945]
[1763592616186,0.84279892,2982.6,2982.5,0.1484]
[1763592616889,0.84279892,2982.6,2982.5,0.3945]
[1763592617587,0.80489892,2982.6,2982.5,0.3945]
[1763592618688,0.84279892,2982.6,2982.5,0.1484]
[1763592621592,0.90036592,2983.0,2982.5,0.1484]
[1763592621891,3.4643,2983.4,2983.3,0.2461]
[1763592622690,3.46756756,2983.4,2983.3,0.2461]
[1763592623487,3.21106756,2983.4,2983.3,0.2461]
[1763592625094,3.46756756,2983.4,2983.3,0.2461]
[1763592625293,0.2565,2983.2,2983.1,0.25112958]
[1763592626998,0.00326756,2983.4,2983.3,0.2461]
[1763592632097,0.25476756,2983.4,2983.3,0.2461]
[1763592633094,0.26676756,2983.4,2983.3,0.2461]
[1763592633603,0.2635,2983.2,2983.1,0.25062958]
[1763592636903,0.00326756,2983.4,2983.3,0.2456]
[1763592637510,0.26676756,2983.4,2983.3,0.2456]
[1763592638905,0.2635,2983.2,2983.1,0.25062958]
[1763592639100,0.2635,2983.2,2983.1,0.00502958]
[1763592640008,0.2635,2983.2,2983.1,0.25062958]
[1763592640501,0.2635,2983.2,2983.1,0.00502958]
[1763592640697,0.2635,2983.2,2983.1,0.25062958]
[1763592641902,0.00326756,2983.4,2983.1,0.25062958]
[1763592641903,0.00326756,2983.4,2983.3,0.2456]
[1763592642098,0.2635,2983.2,2983.1,0.25062958]
[1763592642409,0.00326756,2983.4,2983.3,0.2456]
[1763592644708,0.26676756,2983.4,2983.3,0.2456]
[1763592645807,0.2635,2983.2,2983.1,3.25502958]
[1763592646214,0.2635,2983.2,2983.1,0.00502958]
[1763592647506,0.2635,2983.2,2983.1,0.25062958]
[1763592647711,0.26676756,2983.4,2983.3,0.2456]
[1763592647908,0.00326756,2983.4,2983.3,0.2456]
[1763592651025,0.26676756,2983.4,2983.3,0.2456]
[1763592652412,0.26676756,2983.4,2983.1,1.80922246]
[1763592652413,0.2635,2983.2,2983.1,2.05482246]
[1763592652615,0.00326756,2983.4,2983.3,0.2456]
[1763592652818,0.00326756,2983.4,2983.3,2.04606487]
[1763592653223,0.00326756,2983.4,2983.3,5.29606487]
[1763592653419,0.00326756,2983.4,2983.3,3.4956]
[1763592653823,0.00326756,2983.4,2983.3,5.29606487]
[1763592654425,0.26676756,2983.4,2983.3,2.04606487]
[1763592654626,0.26676756,2983.4,2983.3,5.25386487]
[1763592657231,0.00326756,2983.4,2983.3,5.25386487]
[1763592658226,0.26676756,2983.4,2983.3,3.4534]
[1763592659036,0.00326756,2983.4,2983.3,3.4534]
[1763592660130,0.00326756,2983.4,2983.3,5.25386487]
[1763592660820,0.00326756,2983.4,2983.3,3.2078]
[1763592661027,0.26676756,2983.4,2983.3,3.2078]
[1763592661525,0.2635,2983.3,2983.2,0.2456]
[1763592661828,0.2635,2983.2,2983.1,1.80549445]
[1763592664835,0.2635,2983.2,2983.1,0.00502958]
[1763592665733,0.2635,2983.2,2983.1,0.25062958]
[1763592666336,0.2334,2983.2,2983.1,0.25672958]
[1763592666538,1.02825208,2983.2,2983.1,0.00502958]
[1763592666834,0.2334,2983.2,2983.1,0.00502958]
[1763592667838,6.2334,2983.2,2983.1,0.00502958]
[1763592668038,0.2334,2982.8,2982.7,5.00826487]
[1763592668333,0.2334,2982.8,2982.7,3.2078]
[1763592668538,0.3767,2982.5,2982.4,5.00826487]
[1763592669039,0.3767,2982.5,2982.4,3.2078]
[1763592669432,1.17079428,2982.5,2982.4,3.2078]
[1763592670231,0.2334,2982.3,2982.2,0.00502958]
[1763592676441,0.77721,2982.3,2982.2,0.00502958]
[1763592677032,0.77721,2982.3,2982.2,0.25672958]
[1763592678437,0.77721,2982.3,2982.2,0.00502958]
[1763592680540,0.77721,2982.3,2982.2,0.25672958]
[1763592680845,0.77721,2982.3,2982.2,0.00502958]
[1763592681437,0.2334,2982.3,2982.2,0.25672958]
[1763592682935,0.3767,2982.5,2982.4,0.2517]
[1763592683142,0.3767,2982.5,2982.4,3.4595]
[1763592683337,0.3767,2982.5,2982.4,3.2078]
[1763592684938,0.2334,2982.3,2982.2,0.00502958]
[1763592688345,0.77721,2982.3,2982.2,0.00502958]
[1763592690049,3.98501,2982.3,2982.2,0.00502958]
[1763592690249,1.56882027,2982.3,2982.2,0.00502958]
[1763592690448,0.77721,2982.3,2982.2,0.00502958]
[1763592695954,0.54381,2982.3,2982.2,0.24222958]
[1763592696153,0.79081,2982.3,2982.2,0.24222958]
[1763592697849,0.247,2982.3,2982.2,0.24222958]